fUST/lending_fUST_20250115
["ID","MTS","AMOUNT","RATE_DAILY","PERIOD"]
[348930568,1736875847018,-778.11,0.00023561,3]
[348930570,1736875847028,-500.0,0.00023561,3]
[348930572,1736875847038,-3540.0,0.00023571,7]
[348930574,1736875847048,-1688.84323697,0.0002359,2]
[348930576,1736875847057,-2000.0,0.000236,2]
[348930578,1736875847067,-151.0,0.000236,5]
[348930580,1736875847078,-395.47267101,0.00023663,2]
[348930582,1736875847087,-500.0,0.00023673,2]
[348930584,1736875847097,-328.55026641,0.00023673,2]
[348930586,1736875847106,-500.0,0.00023673,2]
[348930588,1736875847116,-500.0,0.00023673,2]
[348930590,1736875847125,-500.0,0.00023673,2]
[348930592,1736875847135,-500.99679196,0.00023673,2]
[348930594,1736875847145,-151.0,0.00023688,2]
[348930596,1736875847155,-151.0,0.00023689,7]
[348930598,1736875847164,-151.0,0.00023689,7]
[348930600,1736875847173,-294.018466,0.00023689,7]
[348930602,1736875847183,-164.40838595,0.00023689,14]
[348930604,1736875847193,-151.0,0.00023689,7]
[348930606,1736875847204,-500.0,0.00023689,14]
[348930608,1736875847214,-150.21,0.00023689,14]
[348930610,1736875847223,-150.21,0.00023689,2]
[348930613,1736875847233,-150.21,0.00023689,14]
[348930614,1736875847242,-151.447043,0.00023689,7]
[348930617,1736875847253,-150.21,0.00023689,14]
[348930619,1736875847263,-150.21,0.00023689,2]
[348930620,1736875847272,-70764.47213023,0.0002369,61]
[348930623,1736875847286,-1226.04132791,0.0002369,61]
[348930625,1736875847297,-23877.63048958,0.0002369,61]
[348930628,1736875847319,-500.0,0.00021917,3]
[348930630,1736875847329,-414.18505106,0.00022054,3]
[348930632,1736875847339,-2294.49437022,0.0002369,61]
[348930634,1736875847351,-1819.53,0.0002369,61]
[348930636,1736875847363,-92346.51864875,0.0002369,61]
[348931873,1736876155186,239.273621,0.00013973,2]
[348931875,1736876832116,-226.62096179,0.0001784,2]
[348931876,1736876836119,-91.24431592,0.0001784,2]
[348931877,1736876836144,-647.39556856,0.0001802,2]
[348931878,1736876836168,-357.244884,0.00020302,2]
[348931879,1736876836191,-300.0,0.00020369,2]
[348931880,1736876836213,-1103.60652947,0.0002037,2]
[348931881,1736876849127,-4090.41132071,0.00020167,2]
[348931882,1736876849154,-4215.06615067,0.0002037,2]
[348931883,1736876852185,-968.53925297,0.0002037,2]
[348931884,1736876973623,10000.0,0.00025,120]
[348931903,1736877001308,10000.0,0.00025,120]
[348931904,1736877024526,10000.0,0.00025,120]
[348931982,1736877032589,-909.58867929,0.00020165,2]
[348931984,1736877032598,-206.01654983,0.00020347,2]
[348931986,1736877032608,-300.0,0.00020367,2]
[348931988,1736877032618,-10590.0,0.00020369,2]
[348931990,1736877032627,-18592.78806689,0.0002037,2]
[348931992,1736877032636,-239.273621,0.00020447,2]
[348931994,1736877032646,-250.0,0.00020842,2]
[348931995,1736877032656,-1278.90119001,0.0002159,2]
[348931997,1736877032666,-184.96728033,0.0002171,2]
[348931999,1736877032675,-329.436,0.00021716,2]
[348932001,1736877032685,-353.2648614,0.000218,2]
[348932003,1736877032694,-500.0,0.00021809,2]
[348932005,1736877032704,-500.0,0.00021809,2]
[348932007,1736877032713,-728.60271978,0.00021809,2]
[348932008,1736877032723,-500.0,0.00021809,2]
[348932010,1736877032732,-500.0,0.00021809,2]
[348932012,1736877032742,-500.0,0.00021809,2]
[348932013,1736877032751,-728.60271978,0.00021809,2]
[348932014,1736877032760,-500.0,0.00021809,2]
[348932015,1736877032773,-500.0,0.00021809,2]
[348932016,1736877032782,-279.42243907,0.00021809,2]
[348932017,1736877032791,-500.0,0.00021809,2]
[348932018,1736877032800,-362.51525891,0.00021809,2]
[348932019,1736877032812,-366.08746087,0.00021809,2]
[348932020,1736877032823,-500.0,0.00021809,2]
[348932021,1736877032835,-500.0,0.00021809,2]
[348932022,1736877032845,-14.28242487,0.00021809,2]
[348932023,1736877032856,-272.07162368,0.00021809,2]
[348932024,1736877032872,-213.64595145,0.00021809,2]
[348932025,1736877032881,-179.37124827,0.00021809,2]
[348932026,1736877032893,-549.23147151,0.00021809,2]
[348932027,1736877033017,-500.0,0.00021809,2]
[348932028,1736877033029,-500.0,0.00021809,2]
[348932029,1736877033038,-728.60271978,0.00021809,2]
[348932030,1736877033048,-437.34949417,0.00021809,2]
[348932031,1736877033058,-500.0,0.00021809,2]
[348932032,1736877033067,-728.60271978,0.00021809,2]
[348932033,1736877033077,-500.0,0.00021809,2]
[348932034,1736877033086,-500.0,0.00021809,2]
[348932035,1736877033096,-728.60271978,0.00021809,2]
[348932036,1736877033105,-500.0,0.00021809,2]
[348932037,1736877033115,-153.18,0.00021811,2]
[348932038,1736877033124,-499.0,0.00021813,2]
[348932039,1736877033134,-518.22267436,0.00021873,2]
[348932040,1736877033144,-237.67393331,0.000219,2]
[348932041,1736877033154,-530.58092286,0.00021916,2]
[348932042,1736877033164,-103.86085959,0.00021917,3]
[348932043,1736877033198,-728.60271978,0.00021809,2]
[348932044,1736877033209,-500.0,0.00021809,2]
[348932045,1736877033219,-500.0,0.00021809,2]
[348932046,1736877033230,-728.60271978,0.00021809,2]
[348932047,1736877033239,-500.0,0.00021809,2]
[348932048,1736877033250,-396.13914041,0.00021917,3]
[348932049,1736877033259,-427.71940279,0.00021917,3]
[348932050,1736877033291,-500.0,0.00021809,2]
[348932051,1736877033301,-500.0,0.00021809,2]
[348932052,1736877033311,-728.60271978,0.00021809,2]
[348932053,1736877033322,-500.0,0.00021809,2]
[348932054,1736877033331,-72.28059721,0.00021917,3]
[348932055,1736877033340,-392.90860682,0.00021917,3]
[348932056,1736877033349,-500.0,0.00021917,3]
[348932057,1736877033360,-500.0,0.00021917,3]
[348932058,1736877033369,-233.53992962,0.00021917,3]
[348932059,1736877033378,-500.0,0.00021917,3]
[348932060,1736877033388,-500.0,0.00021917,3]
[348932061,1736877033398,-500.0,0.00021917,3]
[348932062,1736877033407,-500.0,0.00021917,3]
[348932063,1736877033416,-501.90620605,0.00021917,3]
[348932064,1736877033426,-500.0,0.00021917,3]
[348932065,1736877033435,-500.0,0.00021917,3]
[348932066,1736877033445,-500.0,0.00021917,3]
[348932067,1736877033455,-501.90000197,0.00021917,3]
[348932068,1736877033464,-500.0,0.00021917,3]
[348932069,1736877033473,-502.09388987,0.00021917,3]
[348932070,1736877033482,-500.0,0.00021917,3]
[348932071,1736877033491,-501.86431529,0.00021917,3]
[348932072,1736877033500,-501.83300459,0.00021917,3]
[348932073,1736877033510,-500.0,0.00021917,3]
[348932074,1736877033519,-500.0,0.00021917,3]
[348932075,1736877033531,-500.0,0.00021917,3]
[348932076,1736877033541,-500.0,0.00021917,3]
[348932077,1736877033551,-500.0,0.00021917,3]
[348932078,1736877033560,-500.0,0.00021917,3]
[348932079,1736877033570,-500.0,0.00021917,3]
[348932080,1736877033579,-180.16070912,0.00021917,3]
[348932081,1736877033658,-319.83929088,0.00021917,3]
[348932082,1736877033667,-500.0,0.00021917,3]
[348932083,1736877033677,-275.3440797,0.00021917,3]
[348932125,1736877038353,-25.18010686,0.00021809,2]
[348932128,1736877038373,-474.81989314,0.00021809,2]
[348932130,1736877038383,-65.48349059,0.00021809,2]
[348932132,1736877038394,-663.11922919,0.00021809,2]
[348932134,1736877038403,-500.0,0.00021809,2]
[348932135,1736877038413,-500.0,0.00021809,2]
[348932137,1736877038422,-500.0,0.00021809,2]
[348932138,1736877038432,-728.60271978,0.00021809,2]
[348932140,1736877038441,-500.0,0.00021809,2]
[348932142,1736877038450,-500.0,0.00021809,2]
[348932143,1736877038460,-728.60271978,0.00021809,2]
[348932145,1736877038469,-545.78962779,0.00021809,2]
[348932147,1736877038478,-728.60271978,0.00021809,2]
[348932149,1736877038487,-500.0,0.00021809,2]
[348932151,1736877038496,-500.0,0.00021809,2]
[348932154,1736877038505,-728.60271978,0.00021809,2]
[348932157,1736877038516,-500.0,0.00021809,2]
[348932161,1736877038526,-156.16056632,0.00021809,2]
[348932164,1736877038539,-343.83943368,0.00021809,2]
[348932167,1736877038548,-728.60271978,0.00021809,2]
[348932170,1736877038557,-500.0,0.00021809,2]
[348932173,1736877038566,-728.60271978,0.00021809,2]
[348932176,1736877038576,-728.60271978,0.00021809,2]
[348932179,1736877038585,-500.0,0.00021809,2]
[348932182,1736877038594,-728.60271978,0.00021809,2]
[348932185,1736877038602,-500.0,0.00021809,2]
[348932188,1736877038611,-150.2496872,0.00021809,2]
[348932205,1736877038752,-578.35303258,0.00021809,2]
[348932207,1736877038762,-728.60271978,0.00021809,2]
[348932209,1736877038772,-500.0,0.00021809,2]
[348932211,1736877038783,-728.60271978,0.00021809,2]
[348932213,1736877038793,-500.0,0.00021809,2]
[348932215,1736877038803,-728.60271978,0.00021809,2]
[348932217,1736877038812,-500.0,0.00021809,2]
[348932219,1736877038822,-728.60271978,0.00021809,2]
[348932220,1736877038835,-458.5478088,0.00021809,2]
[348932221,1736877038845,-728.60271978,0.00021809,2]
[348932222,1736877038854,-500.0,0.00021809,2]
[348932223,1736877038864,-728.60271978,0.00021809,2]
[348932224,1736877038875,-271.97363448,0.00021809,2]
[348932225,1736877038887,-228.02636552,0.00021809,2]
[348932226,1736877038898,-728.60271978,0.00021809,2]
[348932227,1736877038913,-728.60271978,0.00021809,2]
[348932228,1736877038924,-728.60271978,0.00021809,2]
[348932229,1736877038934,-728.60271978,0.00021809,2]
[348932230,1736877038944,-728.60271978,0.00021809,2]
[348932231,1736877038954,-728.60271978,0.00021809,2]
[348932232,1736877038963,-608.50478999,0.00021809,2]
[348932287,1736877040404,-120.09792979,0.00021809,2]
[348932289,1736877040414,-721.07958481,0.00021809,2]
[348932292,1736877040426,-7.52313497,0.00021809,2]
[348932294,1736877040436,-728.60271978,0.00021809,2]
[348932296,1736877040446,-728.60271978,0.00021809,2]
[348932298,1736877040456,-53.49409983,0.00021809,2]
[348932568,1736877043345,-675.10861995,0.00021809,2]
[348932570,1736877043355,-728.60271978,0.00021809,2]
[348932572,1736877043365,-728.60271978,0.00021809,2]
[348932574,1736877043375,-728.60271978,0.00021809,2]
[348932576,1736877043385,-728.60271978,0.00021809,2]
[348932578,1736877043394,-728.60271978,0.00021809,2]
[348932580,1736877043404,-728.60271978,0.00021809,2]
[348932583,1736877043413,-728.60271978,0.00021809,2]
[348932585,1736877043423,-728.60271978,0.00021809,2]
[348932587,1736877043432,-728.60271978,0.00021809,2]
[348932588,1736877043441,-728.60271978,0.00021809,2]
[348932591,1736877043450,-728.60271978,0.00021809,2]
[348932593,1736877043460,-728.60271978,0.00021809,2]
[348932596,1736877043469,-728.60271978,0.00021809,2]
[348932600,1736877043479,-224.6559203,0.00021917,3]
[348932601,1736877043487,-500.0,0.00021917,3]
[348932603,1736877043496,-500.0,0.00021917,3]
[348932605,1736877043505,-500.0,0.00021917,3]
[348932606,1736877043514,-500.0,0.00021917,3]
[348932607,1736877043523,-500.0,0.00021917,3]
[348932608,1736877043532,-500.0,0.00021917,3]
[348932609,1736877043544,-500.0,0.00021917,3]
[348932610,1736877043553,-500.0,0.00021917,3]
[348932611,1736877043562,-500.0,0.00021917,3]
[348932612,1736877043571,-500.0,0.00021917,3]
[348932613,1736877043580,-500.0,0.00021917,3]
[348932614,1736877043589,-500.0,0.00021917,3]
[348932615,1736877043598,-500.0,0.00021917,3]
[348932616,1736877043607,-500.0,0.00021917,3]
[348932617,1736877043616,-500.0,0.00021917,3]
[348932618,1736877043625,-500.0,0.00021917,3]
[348932619,1736877043635,-500.0,0.00021917,3]
[348932620,1736877043644,-184.83942727,0.00021917,3]
[348932621,1736877043653,-500.0,0.00021917,3]
[348932622,1736877043663,-500.0,0.00021917,3]
[348932623,1736877043673,-500.0,0.00021917,3]
[348932624,1736877043682,-500.0,0.00021917,3]
[348932625,1736877043692,-500.0,0.00021917,3]
[348932626,1736877043702,-500.0,0.00021917,3]
[348932627,1736877043711,-500.0,0.00021917,3]
[348932629,1736877043720,-500.0,0.00021917,3]
[348932631,1736877043730,-500.0,0.00021917,3]
[348932633,1736877043739,-500.0,0.00021917,3]
[348932635,1736877043748,-500.0,0.00021917,3]
[348932636,1736877043758,-500.0,0.00021917,3]
[348932637,1736877043767,-500.0,0.00021917,3]
[348932638,1736877043777,-500.0,0.00021917,3]
[348932639,1736877043787,-500.0,0.00021917,3]
[348932640,1736877043798,-500.0,0.00021917,3]
[348932641,1736877043807,-500.0,0.00021917,3]
[348932642,1736877043817,-500.0,0.00021917,3]
[348932643,1736877043827,-500.0,0.00021917,3]
[348932644,1736877043840,-500.0,0.00021917,3]
[348932645,1736877043849,-500.0,0.00021917,3]
[348932646,1736877043859,-500.0,0.00021917,3]
[348932647,1736877043868,-500.0,0.00021917,3]
[348932648,1736877043879,-500.0,0.00021917,3]
[348932649,1736877043888,-502.22519618,0.00021917,3]
[348932650,1736877043897,-500.0,0.00021917,3]
[348932651,1736877043909,-500.0,0.00021917,3]
[348932652,1736877043918,-500.0,0.00021917,3]
[348932653,1736877043928,-500.0,0.00021917,3]
[348932654,1736877043938,-500.0,0.00021917,3]
[348932655,1736877043947,-500.45340423,0.00021917,3]
[348932656,1736877043957,-500.0,0.00021917,3]
[348932657,1736877043966,-500.0,0.00021917,3]
[348932658,1736877043976,-470.83355585,0.00021917,3]
[348932659,1736877043986,-500.0,0.00021917,2]
[348932660,1736877043996,-500.0,0.00021917,3]
[348932661,1736877044006,-500.0,0.00021917,3]
[348932662,1736877044015,-500.65665988,0.00021917,3]
[348932663,1736877044025,-500.0,0.00021917,3]
[348932664,1736877044035,-500.0,0.00021917,3]
[348932665,1736877044044,-40.38820111,0.00021917,3]
[348932674,1736877044245,-459.61179889,0.00021917,3]
[348932676,1736877044256,-188.0,0.00021917,2]
[348932678,1736877044266,-500.0,0.00021917,3]
[348932680,1736877044275,-305.34137154,0.00021917,3]
[348932681,1736877044286,-500.0,0.00021917,3]
[348932683,1736877044296,-500.0,0.00021917,3]
[348932685,1736877044305,-500.0,0.00021917,3]
[348932688,1736877044315,-500.0,0.00021917,3]
[348932690,1736877044325,-500.0,0.00021917,3]
[348932692,1736877044334,-500.0,0.00021917,3]
[348932694,1736877044344,-500.0,0.00021917,3]
[348932696,1736877044354,-500.0,0.00021917,3]
[348932698,1736877044363,-500.0,0.00021917,3]
[348932700,1736877044373,-500.0,0.00021917,3]
[348932702,1736877044383,-500.0,0.00021917,3]
[348932704,1736877044392,-500.0,0.00021917,3]
[348932706,1736877044401,-500.0,0.00021917,3]
[348932708,1736877044411,-500.0,0.00021917,3]
[348932710,1736877044421,-572.57804208,0.00021917,3]
[348932712,1736877044431,-500.0,0.00021917,3]
[348932714,1736877044440,-500.0,0.00021917,3]
[348932716,1736877044450,-500.0,0.00021917,3]
[348932718,1736877044460,-500.0,0.00021917,3]
[348932720,1736877044470,-500.0,0.00021917,3]
[348932722,1736877044480,-500.0,0.00021917,3]
[348932724,1736877044489,-500.0,0.00021917,3]
[348932726,1736877044499,-500.0,0.00021917,3]
[348932728,1736877044508,-500.0,0.00021917,3]
[348932730,1736877044518,-505.67659706,0.00021917,3]
[348932732,1736877044527,-500.0,0.00021917,3]
[348932734,1736877044538,-500.0,0.00021917,3]
[348932736,1736877044547,-500.0,0.00021917,3]
[348932738,1736877044557,-500.0,0.00021917,3]
[348932740,1736877044566,-484.35469424,0.00021917,3]
[348932742,1736877044576,-500.0,0.00021917,3]
[348932744,1736877044585,-500.0,0.00021917,3]
[348932746,1736877044595,-640.12449582,0.00021917,3]
[348932748,1736877044604,-501.74628215,0.00021917,3]
[348932750,1736877044614,-500.0,0.00021917,3]
[348932752,1736877044623,-512.5737224,0.00021917,3]
[348932754,1736877044633,-500.0,0.00021917,3]
[348932756,1736877044643,-500.0,0.00021917,3]
[348932758,1736877044653,-500.0,0.00021917,3]
[348932760,1736877044663,-500.0,0.00021917,3]
[348932762,1736877044672,-500.0,0.00021917,3]
[348932764,1736877044682,-500.0,0.00021917,3]
[348932766,1736877044691,-500.0,0.00021917,3]
[348932768,1736877044701,-500.0,0.00021917,3]
[348932770,1736877044710,-394.57015836,0.00021917,3]
[348932904,1736877046378,-105.42984164,0.00021917,3]
[348932905,1736877046388,-500.0,0.00021917,3]
[348932906,1736877046398,-500.0,0.00021917,3]
[348932907,1736877046408,-500.0,0.00021917,3]
[348932908,1736877046418,-500.0,0.00021917,3]
[348932909,1736877046428,-500.0,0.00021917,3]
[348932910,1736877046437,-508.92620435,0.00021917,3]
[348932911,1736877046447,-500.24,0.00021917,3]
[348932912,1736877046456,-500.0,0.00021917,3]
[348932914,1736877046466,-384.04002935,0.00021917,3]
[348932916,1736877046476,-1000.0,0.00021917,3]
[348932917,1736877046486,-500.0,0.00021917,3]
[348932919,1736877046496,-500.0,0.00021917,3]
[348932920,1736877046505,-500.0,0.00021917,3]
[348932921,1736877046515,-500.0,0.00021917,3]
[348932922,1736877046524,-500.0,0.00021917,3]
[348932923,1736877046533,-500.0,0.00021917,3]
[348932924,1736877046543,-500.0,0.00021917,3]
[348932925,1736877046553,-500.0,0.00021917,3]
[348932926,1736877046562,-500.0,0.00021917,3]
[348932927,1736877046572,-500.0,0.00021917,3]
[348932928,1736877046582,-500.0,0.00021917,3]
[348932929,1736877046591,-500.0,0.00021917,2]
[348932930,1736877046601,-500.0,0.00021917,3]
[348932931,1736877046610,-500.0,0.00021917,3]
[348932932,1736877046620,-500.0,0.00021917,3]
[348932933,1736877046629,-395.74317895,0.00021917,3]
[348932934,1736877046641,-104.25682105,0.00021917,3]
[348932935,1736877046651,-500.0,0.00021917,3]
[348932936,1736877046661,-500.0,0.00021917,3]
[348932938,1736877046671,-500.0,0.00021917,3]
[348932940,1736877046680,-500.0,0.00021917,3]
[348932942,1736877046689,-500.0,0.00021917,3]
[348932944,1736877046699,-500.0,0.00021917,3]
[348932946,1736877046709,-500.0,0.00021917,3]
[348932947,1736877046717,-500.0,0.00021917,3]
[348932949,1736877046727,-500.0,0.00021917,3]
[348932951,1736877046737,-500.0,0.00021917,3]
[348932953,1736877046746,-500.0,0.00021917,3]
[348932955,1736877046755,-255.06213516,0.00021917,3]
[348932957,1736877046767,-244.93786484,0.00021917,3]
[348932959,1736877046777,-595.61842445,0.00021917,3]
[348932960,1736877046786,-500.0,0.00021917,3]
[348932962,1736877046795,-500.0,0.00021917,3]
[348932964,1736877046805,-500.0,0.00021917,3]
[348932966,1736877046816,-452.71611277,0.00021917,3]
[348932968,1736877046833,-47.28388723,0.00021917,3]
[348932970,1736877046842,-500.0,0.00021917,3]
[348932972,1736877046852,-217.28146966,0.00021917,3]
[348933247,1736877086223,235.346259,0.00013973,2]
[348933248,1736877168830,10000.0,0.00025,120]
[348933318,1736877595955,10000.0,0.00025,120]
[348933319,1736877968755,263.578946,0.00013973,2]
[348933320,1736878036130,-242.24062644,0.00019236,2]
[348933321,1736878036155,-263.549,0.0001943,2]
[348933322,1736878036177,-193.830227,0.00019627,2]
[348933323,1736878036201,-270.6858273,0.00019856,2]
[348933324,1736878036223,-1016.9671671,0.00020005,2]
[348933327,1736878131150,414.76,0.00018,30]
[348933363,1736878232632,-175.897104,0.00019871,2]
[348933364,1736878232643,-1960.0328329,0.00020005,2]
[348933365,1736878232653,-1047.25454032,0.00020075,2]
[348933366,1736878232667,-999.888,0.00020075,2]
[348933367,1736878232680,-3607.09851778,0.00020075,2]
[348933368,1736878232691,-500.0,0.00020164,2]
[348933369,1736878232702,-250.0,0.00020207,2]
[348933370,1736878232713,-534.393163,0.00020347,2]
[348933372,1736878232723,-263.578946,0.00020447,2]
[348933374,1736878232734,-172.774726,0.00020666,2]
[348933376,1736878232744,-300.0,0.0002089,2]
[348933378,1736878232755,-785.4134831,0.00020891,2]
[348933380,1736878232765,-209.634364,0.00021174,2]
[348933382,1736878232776,-153.9478634,0.00021233,2]
[348933384,1736878232786,-214.9393243,0.00021233,2]
[348933386,1736878232796,-153.9478634,0.00021233,2]
[348933388,1736878232805,-202.5633792,0.00021233,2]
[348933390,1736878232816,-153.9478634,0.00021278,2]
[348933393,1736878232826,-153.9478634,0.00021378,2]
[348933395,1736878232837,-214.9393243,0.00021378,2]
[348933397,1736878232847,-209.634364,0.00021471,2]
[348933399,1736878232858,-2977.0,0.00021606,4]
[348933401,1736878232869,-209.634364,0.00021768,2]
[348933403,1736878232880,-237.67393331,0.000219,2]
[348933406,1736878232890,-500.0,0.00021916,2]
[348933408,1736878232901,-500.0,0.00021916,2]
[348933410,1736878232911,-500.0,0.00021916,2]
[348933412,1736878232921,-500.0,0.00021916,2]
[348933414,1736878232932,-505.08773642,0.00021916,2]
[348933416,1736878232942,-500.0,0.00021916,2]
[348933418,1736878232953,-215.26105491,0.00021916,2]
[348933421,1736878232963,-500.0,0.00021916,2]
[348933423,1736878232974,-500.0,0.00021916,2]
[348933425,1736878232985,-500.0,0.00021916,2]
[348933427,1736878232995,-500.0,0.00021916,2]
[348933429,1736878233005,-500.0,0.00021916,2]
[348933432,1736878233016,-500.0,0.00021916,2]
[348933434,1736878233027,-500.0,0.00021916,2]
[348933436,1736878233038,-495.85478088,0.00021916,2]
[348933438,1736878233049,-500.0,0.00021916,2]
[348933440,1736878233060,-500.0,0.00021916,2]
[348933442,1736878233070,-500.0,0.00021916,2]
[348933444,1736878233081,-500.0,0.00021916,2]
[348933446,1736878233091,-500.0,0.00021916,2]
[348933449,1736878233102,-500.0,0.00021916,2]
[348933451,1736878233115,-500.0,0.00021916,2]
[348933453,1736878233126,-500.0,0.00021916,2]
[348933455,1736878233137,-500.0,0.00021916,2]
[348933457,1736878233149,-500.0,0.00021916,2]
[348933459,1736878233160,-500.0,0.00021916,2]
[348933462,1736878233172,-500.0,0.00021916,2]
[348933464,1736878233183,-500.0,0.00021916,2]
[348933466,1736878233194,-500.0,0.00021916,2]
[348933468,1736878233206,-500.0,0.00021916,2]
[348933470,1736878233217,-500.0,0.00021916,2]
[348933472,1736878233230,-500.0,0.00021916,2]
[348933475,1736878233242,-500.0,0.00021916,2]
[348933477,1736878233253,-500.0,0.00021916,2]
[348933501,1736878233468,-500.0,0.00021916,2]
[348933503,1736878233482,-500.0,0.00021916,2]
[348933505,1736878233493,-500.0,0.00021916,2]
[348933507,1736878233503,-500.0,0.00021916,2]
[348933509,1736878233514,-500.0,0.00021916,2]
[348933511,1736878233524,-500.0,0.00021916,2]
[348933514,1736878233535,-500.0,0.00021916,2]
[348933515,1736878233545,-500.0,0.00021916,2]
[348933518,1736878233556,-187.12239032,0.00021916,2]
[348933520,1736878233566,-500.0,0.00021916,2]
[348933522,1736878233577,-500.0,0.00021916,2]
[348933524,1736878233587,-500.0,0.00021916,2]
[348933526,1736878233597,-500.0,0.00021916,2]
[348933528,1736878233607,-500.0,0.00021916,2]
[348933530,1736878233618,-500.0,0.00021916,2]
[348933532,1736878233628,-500.0,0.00021916,2]
[348933534,1736878233638,-500.0,0.00021916,2]
[348933536,1736878233648,-500.0,0.00021916,2]
[348933538,1736878233658,-500.0,0.00021916,2]
[348933540,1736878233668,-500.0,0.00021916,2]
[348933542,1736878233678,-500.0,0.00021916,2]
[348933544,1736878233687,-500.0,0.00021916,2]
[348933546,1736878233696,-500.0,0.00021916,2]
[348933548,1736878233706,-500.0,0.00021916,2]
[348933550,1736878233716,-500.0,0.00021916,2]
[348933552,1736878233726,-500.0,0.00021916,2]
[348933554,1736878233735,-500.0,0.00021916,2]
[348933556,1736878233745,-500.0,0.00021916,2]
[348933558,1736878233755,-500.0,0.00021916,2]
[348933560,1736878233765,-500.0,0.00021916,2]
[348933562,1736878233774,-500.0,0.00021916,2]
[348933564,1736878233783,-500.0,0.00021916,2]
[348933566,1736878233793,-500.0,0.00021916,2]
[348933568,1736878233802,-221.50853479,0.00021916,2]
[348934238,1736878240485,-11215.12073379,0.00021816,2]
[348934240,1736878240496,-278.49146521,0.00021916,2]
[348934242,1736878240506,-500.0,0.00021916,2]
[348934244,1736878240515,-400.00000001,0.00021916,2]
[348934246,1736878240525,-500.0,0.00021916,2]
[348934248,1736878240534,-500.0,0.00021916,2]
[348934250,1736878240543,-500.0,0.00021916,2]
[348934252,1736878240553,-500.0,0.00021916,2]
[348934254,1736878240562,-500.0,0.00021916,2]
[348934256,1736878240572,-500.0,0.00021916,2]
[348934258,1736878240581,-500.0,0.00021916,2]
[348934260,1736878240591,-500.0,0.00021916,2]
[348934262,1736878240601,-440.0,0.00021916,2]
[348934264,1736878240610,-500.0,0.00021916,2]
[348934266,1736878240624,-500.0,0.00021916,2]
[348934268,1736878240633,-189.60075832,0.00021916,2]
[348934270,1736878240643,-500.0,0.00021916,2]
[348934272,1736878240653,-153.11969284,0.00021916,2]
[348934274,1736878240663,-168.17953326,0.00021916,2]
[348934276,1736878240672,-163.37705432,0.00021916,2]
[348934278,1736878240681,-500.0,0.00021916,2]
[348934280,1736878240691,-169.10574546,0.00021916,2]
[348934282,1736878240700,-500.0,0.00021917,2]
[348934284,1736878240709,-500.0,0.00021917,3]
[348934286,1736878240719,-455.4110028,0.00021917,3]
[348934288,1736878240729,-501.90185914,0.00021917,3]
[348934290,1736878240738,-383.64978709,0.00021917,3]
[348934292,1736878240748,-500.0,0.00021917,3]
[348934294,1736878240758,-500.0,0.00021917,3]
[348934296,1736878240767,-500.0,0.00021917,3]
[348934298,1736878240777,-501.62613012,0.00021917,3]
[348934300,1736878240786,-500.0,0.00021917,3]
[348934302,1736878240795,-500.0,0.00021917,3]
[348934304,1736878240806,-500.0,0.00021917,3]
[348934306,1736878240815,-500.0,0.00021917,3]
[348934308,1736878240824,-500.0,0.00021917,3]
[348934310,1736878240834,-500.0,0.00021917,3]